fUSD/lending_fUSD_20260127
["ID","MTS","AMOUNT","RATE_DAILY","PERIOD"]
[403688532,1769482243803,-151.21465745,0.00016865,2]
[403688533,1769482243812,-695.39793187,0.00016865,2]
[403688534,1769482243820,-256.42749579,0.00016865,2]
[403688535,1769482243830,-578.20924308,0.00016865,2]
[403688536,1769482243839,-250.0,0.00016865,2]
[403688537,1769482243849,-250.0,0.00016865,2]
[403688538,1769482243858,-250.0,0.00016865,2]
[403688539,1769482243867,-3543.0,0.00016865,2]
[403688540,1769482243876,-250.0,0.00016865,2]
[403688541,1769482243886,-250.0,0.00016865,2]
[403688542,1769482244084,-201.93286099,0.00016865,2]
[403688543,1769482244095,-250.0,0.00016865,2]
[403688544,1769482244106,-823.77908852,0.00016865,2]
[403688545,1769482244117,-250.0,0.00016865,2]
[403688546,1769482244127,-250.0,0.00016865,2]
[403688547,1769482244137,-250.0,0.00016865,2]
[403688548,1769482244147,-250.0,0.00016865,2]
[403688549,1769482244159,-500.0,0.00016865,2]
[403688550,1769482244169,-250.0,0.00016865,2]
[403688551,1769482244179,-250.0,0.00016865,2]
[403688552,1769482244191,-250.0,0.00016865,2]
[403688553,1769482244202,-250.0,0.00016865,2]
[403688554,1769482244212,-500.0,0.00016865,2]
[403688555,1769482244222,-250.0,0.00016865,2]
[403688556,1769482244232,-250.0,0.00016865,2]
[403688557,1769482244243,-500.0,0.00016865,2]
[403688558,1769482244253,-250.0,0.00016865,2]
[403688559,1769482244262,-250.0,0.00016865,2]
[403688560,1769482244274,-500.0,0.00016865,2]
[403688561,1769482244283,-250.0,0.00016865,2]
[403688562,1769482244292,-250.0,0.00016865,2]
[403688563,1769482244301,-500.0,0.00016865,2]
[403688564,1769482244311,-250.0,0.00016865,2]
[403688565,1769482244320,-625.40992031,0.00016865,2]
[403688566,1769482244329,-500.0,0.00016865,2]
[403688567,1769482244337,-250.0,0.00016865,2]
[403688568,1769482244346,-500.0,0.00016865,2]
[403688569,1769482244355,-250.0,0.00016865,2]
[403688570,1769482244363,-500.0,0.00016865,2]
[403688571,1769482244373,-500.0,0.00016865,2]
[403688572,1769482244383,-250.0,0.00016865,2]
[403688573,1769482244392,-500.0,0.00016865,2]
[403688574,1769482244403,-500.0,0.00016865,2]
[403688575,1769482244412,-222.73131592,0.00016865,2]
[403688576,1769482244421,-500.0,0.00016865,2]
[403688577,1769482244431,-250.0,0.00016865,2]
[403688578,1769482244440,-250.0,0.00016865,2]
[403688579,1769482244449,-250.0,0.00016865,2]
[403688580,1769482244458,-250.0,0.00016865,2]
[403688581,1769482244467,-250.0,0.00016865,2]
[403688582,1769482244476,-220.72805091,0.00016865,2]
[403688583,1769482244485,-250.0,0.00016865,2]
[403688584,1769482244496,-250.0,0.00016865,2]
[403688585,1769482244508,-250.0,0.00016865,2]
[403688586,1769482244517,-250.0,0.00016865,2]
[403688587,1769482244527,-250.0,0.00016865,2]
[403688588,1769482244539,-151.0,0.00016865,2]
[403688589,1769482244548,-250.0,0.00016865,2]
[403688590,1769482244558,-151.0,0.00016865,2]
[403688591,1769482244570,-250.0,0.00016865,2]
[403688592,1769482244585,-250.0,0.00016865,2]
[403688593,1769482244595,-250.0,0.00016865,2]
[403688594,1769482244606,-250.0,0.00016865,2]
[403688595,1769482244616,-250.0,0.00016865,2]
[403688596,1769482244626,-250.0,0.00016865,2]
[403688597,1769482244635,-250.0,0.00016865,2]
[403688598,1769482244645,-250.0,0.00016865,2]
[403688599,1769482244654,-250.0,0.00016865,2]
[403688600,1769482244663,-250.0,0.00016865,2]
[403688601,1769482244672,-250.0,0.00016865,2]
[403688602,1769482244681,-250.0,0.00016865,2]
[403688603,1769482244691,-250.0,0.00016865,2]
[403688604,1769482244703,-250.0,0.00016865,2]
[403688605,1769482244712,-743.50770149,0.00016865,2]
[403688606,1769482244721,-250.0,0.00016865,2]
[403688607,1769482244730,-250.0,0.00016865,2]
[403688608,1769482244739,-250.0,0.00016865,2]
[403688609,1769482244748,-250.0,0.00016865,2]
[403688610,1769482244757,-250.0,0.00016865,2]
[403688611,1769482244766,-267.46074303,0.00016865,2]
[403688612,1769482244775,-250.0,0.00016865,2]
[403688613,1769482244784,-250.0,0.00016865,2]
[403688614,1769482244794,-250.0,0.00016865,2]
[403688615,1769482244804,-250.0,0.00016865,2]
[403688616,1769482244813,-322.7432892,0.00016865,2]
[403688617,1769482244822,-150.0,0.00016897,2]
[403688618,1769482244831,-1400.0,0.000169,6]
[403688619,1769482244840,-1000.0,0.00016921,2]
[403688620,1769482244849,-1000.0,0.00016921,2]
[403688621,1769482244858,-1000.0,0.00016921,2]
[403688622,1769482244867,-150.0,0.00016921,2]
[403688623,1769482244876,-150.99,0.00016922,2]
[403688624,1769482244886,-24451.51,0.00016922,2]
[403688625,1769482244895,-9999.99,0.00016922,2]
[403688626,1769482244904,-150.0,0.00016955,2]
[403688627,1769482244914,-10463.23589319,0.0001696,2]
[403688628,1769482244923,-5946.94699544,0.00016965,2]
[403688629,1769482244932,-500.0,0.00016999,2]
[403688630,1769482244942,-500.0,0.00016999,2]
[403688631,1769482244952,-500.0,0.00016999,2]
[403688632,1769482244961,-500.0,0.00016999,2]
[403688633,1769482244971,-500.0,0.00016999,2]
[403688634,1769482244980,-500.0,0.00016999,2]
[403688635,1769482244989,-500.0,0.00016999,2]
[403688636,1769482244998,-547.66,0.00016999,2]
[403688637,1769482245008,-500.0,0.00016999,2]
[403688638,1769482245018,-625.0,0.00016999,6]
[403688639,1769482245027,-500.0,0.00016999,2]
[403688640,1769482245036,-500.0,0.00016999,2]
[403688641,1769482245045,-500.0,0.00016999,2]
[403688642,1769482245054,-500.0,0.00016999,2]
[403688643,1769482245063,-500.0,0.00016999,2]
[403688644,1769482245072,-500.0,0.00016999,2]
[403688645,1769482245081,-500.0,0.00016999,2]
[403688646,1769482245090,-150.0,0.00017013,2]
[403688647,1769482245099,-900.0,0.00017015,2]
[403688648,1769482245109,-285.5,0.0001706,2]
[403688649,1769482245119,-150.0,0.00017071,2]
[403688650,1769482245128,-1006.48203237,0.00017099,2]
[403688651,1769482245138,-569.89,0.00017112,2]
[403688652,1769482245147,-150.0,0.00017129,2]
[403688653,1769482245157,-237.75,0.00017161,2]
[403688654,1769482245166,-150.0,0.00017187,2]
[403688655,1769482245175,-500.0,0.00017205,2]
[403688656,1769482245187,-150.0,0.00017245,2]
[403688657,1769482245197,-1000.0,0.0001726,2]
[403688658,1769482245211,-10463.23589319,0.00017273,2]
[403688659,1769482245220,-5946.94699544,0.00017276,2]
[403688660,1769482245230,-150.0,0.00017303,2]
[403688661,1769482245239,-1000.0,0.00017321,2]
[403688662,1769482245252,-150.0,0.00017361,2]
[403688663,1769482245261,-209.40437684,0.00017413,2]
[403688664,1769482245271,-181.08010149,0.00017413,2]
[403688665,1769482245281,-176.38213192,0.00017413,2]
[403688666,1769482245290,-854.2589148,0.00017413,2]
[403688667,1769482245300,-151.0,0.00017413,2]
[403688668,1769482245310,-531.88490552,0.00017413,2]
[403688669,1769482245320,-413.20735241,0.00017413,2]
[403688670,1769482245330,-150.0,0.00017419,2]
[403688671,1769482245339,-1500.0,0.00017468,2]
[403688672,1769482245349,-1500.0,0.00017468,2]
[403688673,1769482245359,-1500.0,0.00017468,2]
[403688674,1769482245369,-150.0,0.00017477,2]
[403688675,1769482245379,-159.43753018,0.00017481,2]
[403688676,1769482245389,-259.53,0.000175,2]
[403688677,1769482245399,-866.0,0.00017503,2]
[403688678,1769482245409,-155.0,0.0001753,2]
[403688679,1769482245418,-1000.0,0.00017534,2]
[403688680,1769482245428,-150.0,0.00017535,2]
[403688681,1769482245437,-10463.23589319,0.00017587,2]
[403688682,1769482245447,-868.08,0.00017587,2]
[403688683,1769482245456,-5946.94699544,0.00017588,2]
[403688684,1769482245466,-500.0,0.00017589,2]
[403688685,1769482245475,-150.0,0.00017594,2]
[403688686,1769482245484,-1000.0,0.00017621,2]
[403688687,1769482245494,-150.0,0.00017652,2]
[403688688,1769482245504,-212.21,0.00017653,2]
[403688689,1769482245513,-8801.09038129,0.00017661,2]
[403688690,1769482245522,-15526.16665917,0.00017661,2]
[403688691,1769482245531,-23226.21676309,0.00017661,2]
[403688692,1769482245542,-31425.8967,0.00017661,2]
[403688693,1769482245552,-150.0,0.00017693,2]
[403688694,1769482245561,-2008.0,0.000177,2]
[403688695,1769482245570,-1900.0,0.000177,6]
[403688696,1769482245580,-160.38,0.00017707,2]
[403688697,1769482245589,-569.89,0.00017709,2]
[403688698,1769482245598,-150.0,0.0001771,2]
[403688699,1769482245608,-868.0,0.00017727,2]
[403688700,1769482245617,-5888.0,0.00017747,2]
[403688701,1769482245626,-1085.0,0.00017753,2]
[403688702,1769482245636,-150.0,0.00017768,2]
[403688703,1769482245646,-237.75,0.00017774,2]
[403688704,1769482245655,-1085.0,0.00017784,2]
[403688705,1769482245666,-2400.0,0.000178,6]
[403688706,1769482245676,-500.0,0.00017808,2]
[403688707,1769482245686,-1000.0,0.00017808,2]
[403688708,1769482245696,-150.0,0.00017826,2]
[403688709,1769482245706,-200.0,0.00017855,2]
[403688710,1769482245716,-200.0,0.00017856,2]
[403688711,1769482245725,-200.0,0.00017856,2]
[403688712,1769482245737,-868.08,0.00017861,2]
[403688713,1769482245746,-508.14119219,0.00017863,2]
[403688714,1769482245756,-150.0,0.00017884,2]
[403688715,1769482245767,-10000.0,0.000179,2]
[403688716,1769482245776,-1678.09283677,0.000179,2]
[403688717,1769482245786,-1678.09283677,0.000179,2]
[403688718,1769482245795,-1678.09283677,0.000179,2]
[403688719,1769482245805,-1678.09283677,0.000179,2]
[403688720,1769482245816,-5946.94699544,0.000179,2]
[403688721,1769482245826,-1678.09283677,0.000179,2]
[403688722,1769482245837,-1678.09283677,0.000179,2]
[403688723,1769482245847,-1678.09283677,0.000179,2]
[403688724,1769482245858,-1678.09283677,0.000179,2]
[403688725,1769482245868,-400.0,0.000179,6]
[403688726,1769482245878,-1678.09283677,0.000179,2]
[403688727,1769482245888,-1678.09283677,0.000179,2]
[403688728,1769482245898,-1678.09283677,0.000179,2]
[403688729,1769482245911,-1678.09283677,0.000179,2]
[403688730,1769482245921,-1678.09283677,0.000179,2]
[403688731,1769482245930,-886.32653699,0.000179,2]
[403688732,1769482245941,-223.42523209,0.000179,3]
[403688733,1769482245951,-9157.0,0.000179,2]
[403688734,1769482245960,-1000.0,0.00017906,2]
[403688735,1769482245970,-1085.0,0.0001791,2]
[403688736,1769482245979,-150.0,0.00017942,2]
[403688737,1769482245989,-500.0,0.0001795,2]
[403688738,1769482245998,-500.0,0.0001795,2]
[403688739,1769482246008,-500.0,0.0001795,2]
[403688740,1769482246018,-500.0,0.0001795,2]
[403688741,1769482246028,-500.0,0.0001795,2]
[403688742,1769482246037,-500.0,0.0001795,2]
[403688743,1769482246047,-500.0,0.0001795,2]
[403688744,1769482246056,-547.66,0.0001795,2]
[403688745,1769482246066,-511.43170283,0.0001795,2]
[403688746,1769482246076,-625.0,0.0001795,7]
[403688747,1769482246085,-500.0,0.0001795,2]
[403688748,1769482246095,-500.0,0.0001795,2]
[403688750,1769482246105,-512.3197601,0.0001795,2]
[403688751,1769482246118,-503.87448649,0.0001795,2]
[403688752,1769482246128,-500.0,0.0001795,2]
[403688753,1769482246137,-500.0,0.0001795,2]
[403688754,1769482246148,-500.0,0.0001795,2]
[403688755,1769482246157,-217.15233878,0.00017961,2]
[403688756,1769482246167,-187.78006525,0.00017961,2]
[403688757,1769482246177,-885.86649465,0.00017961,2]
[403688758,1769482246187,-151.0,0.00017961,2]
[403688759,1769482246197,-500.0,0.00017973,2]
[403688760,1769482246209,-150.0,0.00017973,2]
[403688761,1769482246221,-500.0,0.00017982,2]
[403688762,1769482246231,-725.35064776,0.0001799,2]
[403688763,1769482246240,-245.0,0.00017994,2]
[403688764,1769482246253,-615.589,0.00017996,2]
[403688765,1769482246263,-1334.453,0.00017996,2]
[403688766,1769482246273,-3477.0,0.00017996,2]
[403688767,1769482246283,-1408.0,0.00017996,2]
[403688768,1769482246293,-184.285,0.00017996,2]
[403688769,1769482246302,-1271.304,0.00017996,2]
[403688770,1769482246311,-1204.0,0.00017996,2]
[403688771,1769482246324,-567.0,0.00017996,2]
[403688772,1769482246336,-4831.0,0.00017996,2]
[403688773,1769482246351,-6570.0,0.00017996,2]
[403688774,1769482246364,-5796.4619198,0.00017998,2]
[403688775,1769482246374,-500.0,0.00017999,2]
[403688776,1769482246384,-500.0,0.00017999,2]
[403688777,1769482246394,-500.0,0.00017999,2]
[403688778,1769482246412,-236.16272431,0.00017999,2]
[403688779,1769482246425,-500.0,0.00017999,2]
[403688780,1769482246434,-500.0,0.00017999,2]
[403688781,1769482246444,-500.0,0.00017999,2]
[403688782,1769482246454,-500.0,0.00017999,2]
[403688783,1769482246464,-500.0,0.00017999,2]
[403688784,1769482246474,-500.0,0.00017999,2]
[403688785,1769482246484,-517.93611071,0.00017999,2]
[403688786,1769482246494,-433.42701788,0.00017999,2]
[403688787,1769482246503,-500.0,0.00017999,2]
[403688788,1769482246514,-500.0,0.00017999,2]
[403688789,1769482246524,-500.0,0.00017999,2]
[403688790,1769482246534,-500.0,0.00017999,2]
[403688791,1769482246543,-500.0,0.00017999,2]
[403688792,1769482246552,-500.0,0.00017999,2]
[403688793,1769482246562,-500.0,0.00017999,2]
[403688794,1769482246572,-500.0,0.00017999,2]
[403688795,1769482246582,-500.0,0.00017999,2]
[403688796,1769482246592,-500.0,0.00017999,2]
[403688797,1769482246601,-500.0,0.00017999,2]
[403688798,1769482246611,-590.08979136,0.00017999,2]
[403688799,1769482246621,-500.0,0.00017999,2]
[403688800,1769482246634,-500.0,0.00017999,2]
[403688801,1769482246644,-500.0,0.00017999,2]
[403688802,1769482246654,-500.0,0.00017999,2]
[403688803,1769482246664,-215.57339081,0.00017999,2]
[403688804,1769482246674,-500.0,0.00017999,2]
[403688805,1769482246684,-500.0,0.00017999,2]
[403688806,1769482246693,-500.0,0.00017999,2]
[403688807,1769482246704,-500.0,0.00017999,2]
[403688808,1769482246713,-500.0,0.00017999,2]
[403688809,1769482246724,-500.0,0.00017999,2]
[403688810,1769482246734,-500.0,0.00017999,2]
[403688811,1769482246744,-360.07461884,0.00017999,2]
[403688812,1769482246754,-300.0,0.00017999,2]
[403688813,1769482246764,-500.0,0.00017999,2]
[403688814,1769482246775,-500.0,0.00017999,2]
[403688815,1769482246786,-284.23649948,0.00017999,2]
[403688816,1769482246796,-547.66,0.00017999,2]
[403688817,1769482246806,-547.66,0.00017999,2]
[403688818,1769482246989,-547.66,0.00017999,2]
[403688819,1769482246999,-547.66,0.00017999,2]
[403688820,1769482247008,-547.66,0.00017999,2]
[403688821,1769482247018,-547.66,0.00017999,2]
[403688822,1769482247027,-547.66,0.00017999,2]
[403688823,1769482247038,-547.66,0.00017999,2]
[403688824,1769482247048,-547.66,0.00017999,2]
[403688825,1769482247060,-547.66,0.00017999,2]
[403688826,1769482247069,-547.66,0.00017999,2]
[403688827,1769482247080,-547.66,0.00017999,2]
[403688828,1769482247091,-547.66,0.00017999,2]
[403688829,1769482247101,-547.66,0.00017999,2]
[403688830,1769482247112,-547.66,0.00017999,2]
[403688831,1769482247130,-547.66,0.00017999,2]
[403688832,1769482247139,-547.66,0.00017999,2]
[403688833,1769482247158,-547.85360712,0.00017999,2]
[403688834,1769482247173,-625.0,0.00017999,8]
[403688835,1769482247184,-625.0,0.00017999,9]
[403688836,1769482247193,-625.0,0.00017999,10]
[403688837,1769482247203,-625.0,0.00017999,11]
[403688838,1769482247217,-625.0,0.00017999,12]
[403688839,1769482247230,-625.0,0.00017999,13]
[403688840,1769482247240,-625.0,0.00017999,14]
[403688841,1769482247251,-625.0,0.00017999,15]
[403688842,1769482247262,-625.0,0.00017999,16]
[403688843,1769482247272,-625.0,0.00017999,17]
[403688844,1769482247283,-625.0,0.00017999,18]
[403688845,1769482247294,-625.0,0.00017999,19]
[403688846,1769482247304,-625.0,0.00017999,20]
[403688847,1769482247313,-625.0,0.00017999,21]
[403688848,1769482247322,-625.0,0.00017999,21]
[403688849,1769482247332,-625.0,0.00017999,21]
[403688850,1769482247341,-625.0,0.00017999,21]
[403688851,1769482247351,-625.0,0.00017999,21]
[403688852,1769482247360,-536.94514641,0.00017999,2]
[403688853,1769482247369,-500.0,0.00017999,2]
[403688854,1769482247380,-500.0,0.00017999,2]
[403688855,1769482247389,-500.0,0.00017999,2]
[403688856,1769482247399,-358.841013,0.00017999,2]
[403688857,1769482247408,-500.0,0.00017999,2]
[403688858,1769482247417,-500.0,0.00017999,2]
[403688859,1769482247427,-500.0,0.00017999,2]
[403688860,1769482247437,-500.0,0.00017999,2]
[403688861,1769482247447,-384.6317228,0.00017999,2]
[403688862,1769482247457,-500.0,0.00017999,2]
[403688863,1769482247466,-253.11506529,0.00017999,2]
[403688864,1769482247475,-500.0,0.00017999,2]
[403688865,1769482247484,-500.0,0.00017999,2]
[403688866,1769482247493,-500.0,0.00017999,2]
[403688867,1769482247502,-500.0,0.00017999,2]
[403688868,1769482247511,-500.0,0.00017999,2]
[403688869,1769482247520,-500.0,0.00017999,2]
[403688870,1769482247530,-500.0,0.00017999,2]
[403688871,1769482247544,-618.26420438,0.00017999,2]
[403688872,1769482247554,-300.0,0.00017999,2]
[403688873,1769482247563,-300.0,0.00017999,2]
[403688874,1769482247573,-271.61553299,0.00017999,2]
[403688875,1769482247583,-300.0,0.00017999,2]
[403688876,1769482247593,-300.0,0.00017999,2]
[403688877,1769482247602,-300.0,0.00017999,2]
[403688878,1769482247612,-666.0,0.00017999,2]
[403688879,1769482247623,-300.0,0.00017999,2]
[403688880,1769482247633,-1009.4029,0.00017999,2]
[403688881,1769482247643,-277.3965578,0.00018,2]
[403688882,1769482247653,-2505560.10232643,0.00018,2]
[403688883,1769482247664,-110966.8806504,0.00018,2]
[403688884,1769482247673,-59206.03263884,0.00018,2]
[403688885,1769482247684,-1194490.80917681,0.00018,2]
[403688886,1769482247695,-200.0,0.00018,2]
[403688887,1769482247705,-263.045368,0.00018,2]
[403688888,1769482247717,-500.0,0.00018,2]
[403688889,1769482247728,-500.0,0.00018,2]
[403688890,1769482247738,-500.0,0.00018,2]
[403688891,1769482247748,-500.0,0.00018,2]
[403688892,1769482247758,-500.0,0.00018,2]
[403688893,1769482247768,-500.0,0.00018,2]
[403688894,1769482247778,-500.0,0.00018,2]
[403688895,1769482247788,-500.0,0.00018,2]
[403688896,1769482247798,-500.0,0.00018,2]
[403688897,1769482247807,-500.0,0.00018,2]
[403688898,1769482247817,-413.61107391,0.00018,2]
[403688899,1769482247827,-151.0,0.00018,2]
[403688900,1769482247836,-151.0,0.00018,2]
[403688901,1769482247846,-151.0,0.00018,2]
[403688902,1769482247857,-151.0,0.00018,2]
[403688903,1769482247867,-200.0,0.00018,2]
[403688904,1769482247881,-151.0,0.00018,2]
[403688905,1769482247890,-210.425724,0.00018,2]
[403688906,1769482247900,-151.0,0.00018,2]
[403688907,1769482247909,-378.0,0.00018,2]
[403688908,1769482247919,-378.0,0.00018,2]
[403688909,1769482247929,-378.0,0.00018,2]
[403688910,1769482247938,-378.0,0.00018,2]
[403688911,1769482247948,-378.0,0.00018,2]
[403688912,1769482247960,-378.0,0.00018,2]
[403688913,1769482247970,-378.0,0.00018,2]
[403688914,1769482247979,-378.0,0.00018,2]
[403688915,1769482247989,-378.0,0.00018,2]
[403688916,1769482247998,-378.0,0.00018,2]
[403688917,1769482248007,-378.0,0.00018,2]
[403688918,1769482248017,-378.0,0.00018,2]
[403688919,1769482248026,-378.0,0.00018,2]
[403688920,1769482248038,-378.0,0.00018,2]
[403688921,1769482248049,-378.0,0.00018,2]
[403688922,1769482248059,-378.0,0.00018,2]
[403688923,1769482248069,-378.0,0.00018,2]
[403688924,1769482248079,-378.0,0.00018,2]
[403688925,1769482248088,-378.0,0.00018,2]
[403688926,1769482248098,-378.0,0.00018,2]
[403688927,1769482248107,-378.0,0.00018,2]
[403688928,1769482248116,-378.0,0.00018,2]
[403688929,1769482248125,-378.0,0.00018,2]
[403688930,1769482248135,-378.0,0.00018,2]
[403688931,1769482248144,-378.0,0.00018,2]
[403688932,1769482248158,-378.0,0.00018,2]
[403688933,1769482248167,-378.0,0.00018,2]
[403688934,1769482248177,-378.0,0.00018,2]
[403688935,1769482248186,-378.0,0.00018,2]
[403688936,1769482248196,-378.0,0.00018,2]
[403688937,1769482248208,-378.0,0.00018,2]
[403688938,1769482248217,-378.0,0.00018,2]
[403688939,1769482248226,-378.0,0.00018,2]
[403688940,1769482248236,-378.0,0.00018,2]
[403688941,1769482248245,-378.0,0.00018,2]
[403688942,1769482248255,-378.0,0.00018,2]
[403688943,1769482248267,-378.0,0.00018,2]
[403688944,1769482248277,-378.0,0.00018,2]
[403688945,1769482248286,-378.0,0.00018,2]
[403688946,1769482248296,-408.75445904,0.00018,2]
[403688947,1769482248306,-153.442655,0.00018,2]
[403688948,1769482248316,-151.0,0.00018,2]
[403688949,1769482248325,-151.0,0.00018,2]
[403688950,1769482248335,-151.0,0.00018,2]
[403688951,1769482248344,-151.0,0.00018,2]
[403688952,1769482248354,-151.0,0.00018,2]
[403688953,1769482248364,-167.582249,0.00018,2]
[403688954,1769482248373,-151.0,0.00018,2]
[403688955,1769482248383,-151.0,0.00018,2]
[403688956,1769482248392,-156.647313,0.00018,2]
[403688957,1769482248402,-156.647313,0.00018,2]
[403688958,1769482248412,-156.647313,0.00018,2]
[403688959,1769482248422,-156.647313,0.00018,2]
[403688960,1769482248431,-156.647313,0.00018,2]
[403688961,1769482248441,-156.647313,0.00018,2]
[403688962,1769482248451,-156.647313,0.00018,2]
[403688963,1769482248460,-156.647313,0.00018,2]
[403688964,1769482248470,-151.0,0.00018,2]
[403688965,1769482248480,-151.0,0.00018,2]
[403688966,1769482248491,-151.0,0.00018,2]
[403688967,1769482248500,-151.0,0.00018,2]
[403688968,1769482248510,-151.0,0.00018,2]
[403688969,1769482248520,-151.0,0.00018,2]
[403688970,1769482248530,-151.0,0.00018,2]
[403688971,1769482248539,-151.0,0.00018,2]
[403688972,1769482248549,-403.641762,0.00018,2]
[403688973,1769482248558,-403.641762,0.00018,2]
[403688974,1769482248568,-403.641762,0.00018,2]
[403688975,1769482248578,-403.641762,0.00018,2]
[403688976,1769482248588,-403.641762,0.00018,2]
[403688977,1769482248597,-403.641762,0.00018,2]
[403688978,1769482248608,-403.641762,0.00018,2]
[403688979,1769482248618,-403.641762,0.00018,2]
[403688980,1769482248627,-151.0,0.00018,2]
[403688981,1769482248637,-151.0,0.00018,2]
[403688982,1769482248647,-2000.0,0.00018,2]
[403688983,1769482248656,-2000.0,0.00018,2]
[403688984,1769482248666,-2000.0,0.00018,2]
[403688985,1769482248676,-2000.0,0.00018,2]
[403688986,1769482248687,-2000.0,0.00018,2]
[403688987,1769482248696,-2000.0,0.00018,2]
[403688988,1769482248706,-151.0,0.00018,2]
[403688989,1769482248715,-151.0,0.00018,2]
[403688990,1769482248726,-151.0,0.00018,2]
[403688991,1769482248735,-151.0,0.00018,2]
[403688992,1769482248744,-151.0,0.00018,2]
[403688993,1769482248754,-151.0,0.00018,2]
[403688994,1769482248764,-151.0,0.00018,2]
[403688995,1769482248774,-280.337481,0.00018,2]
[403688996,1769482248784,-150.0,0.00018,2]
[403688997,1769482248793,-253.928774,0.00018,2]
[403688998,1769482248803,-151.0,0.00018,2]
[403688999,1769482248812,-151.0,0.00018,2]
[403689000,1769482248822,-589.81434,0.00018,2]
[403689001,1769482248831,-589.81434,0.00018,2]
[403689002,1769482248840,-589.81434,0.00018,2]
[403689003,1769482248849,-589.81434,0.00018,2]
[403689004,1769482248858,-151.0,0.00018,2]
[403689005,1769482248867,-151.0,0.00018,2]
[403689006,1769482248877,-589.81434,0.00018,2]
[403689007,1769482248886,-589.81434,0.00018,2]
[403689008,1769482248896,-151.0,0.00018,2]
[403689009,1769482248905,-151.0,0.00018,2]
[403689010,1769482248915,-589.81434,0.00018,2]
[403689011,1769482248925,-589.81434,0.00018,2]
[403689012,1769482248936,-151.0,0.00018,2]
[403689013,1769482248945,-151.0,0.00018,2]
[403689014,1769482248955,-151.0,0.00018,2]
[403689015,1769482248964,-202.653038,0.00018,2]
[403689016,1769482248973,-295.727108,0.00018,2]
[403689017,1769482248983,-295.727108,0.00018,2]
[403689018,1769482248993,-295.727108,0.00018,2]
[403689019,1769482249003,-295.727108,0.00018,2]
[403689020,1769482249015,-295.727108,0.00018,2]
[403689021,1769482249024,-295.727108,0.00018,2]
[403689022,1769482249035,-295.727108,0.00018,2]
[403689023,1769482249046,-295.727108,0.00018,2]
[403689024,1769482249056,-354.727402,0.00018,2]
[403689025,1769482249065,-354.727402,0.00018,2]
[403689026,1769482249075,-354.727402,0.00018,2]
[403689027,1769482249084,-354.727402,0.00018,2]
[403689028,1769482249093,-354.727402,0.00018,2]
[403689029,1769482249102,-354.727402,0.00018,2]
[403689030,1769482249111,-354.727402,0.00018,2]
[403689031,1769482249121,-354.727402,0.00018,2]
[403689032,1769482249130,-334.588581,0.00018,2]